bitfinex/quotes_ETHUSD_20241124
["timestamp","ask_amount","ask_price","bid_price","bid_amount"]
[1732471173287,3.02431,3306.6,3306.1,0.03074396]
[1732471173492,3.02439,3306.5,3306.1,0.03074396]
[1732471173788,3.02425,3306.6,3306.1,0.03074396]
[1732471173988,3.02437,3306.5,3306.0,1.51237]
[1732471174495,3.02437,3306.5,3306.1,0.03074396]
[1732471176091,3.02425,3306.6,3306.1,0.03074396]
[1732471176266,3.02417,3306.7,3306.1,1.54306396]
[1732471177554,3.02417,3306.7,3306.1,0.03074396]
[1732471177758,3.02382,3307.1,3306.1,0.1543114]
[1732471178058,3.02402,3306.9,3306.4,1.51217]
[1732471178258,3.02402,3306.9,3306.4,1.8176874]
[1732471178469,3.02402,3306.9,3306.5,0.02997204]
[1732471179236,6.04807,3306.9,3306.3,1.51225]
[1732471179497,6.04807,3306.9,3306.6,0.02997204]
[1732471179702,6.04807,3306.9,3306.3,1.51225]
[1732471179857,6.04807,3306.9,3306.7,0.02997204]
[1732471180196,3.02407,3306.8,3306.2,1.51226]
[1732471180507,3.02407,3306.8,3306.2,3.02453]
[1732471180796,3.02398,3306.9,3306.4,1.51219]
[1732471180984,3.0241,3306.8,3306.2,1.51228]
[1732471181184,3.0241,3306.8,3306.2,3.02456]
[1732471181700,0.7553,3307.2,3306.2,1.51228]
[1732471181998,3.0241,3306.8,3306.2,1.51228]
[1732471182768,3.0241,3306.8,3306.2,3.02455]
[1732471183007,3.0241,3306.8,3306.2,1.51227]
[1732471183314,3.02394,3307.0,3306.4,1.51217]
[1732471183617,3.02417,3306.7,3306.2,1.663487]
[1732471183801,3.02417,3306.7,3306.2,1.51226]
[1732471186197,3.02388,3307.0,3305.8,1.51246]
[1732471186411,3.02459,3306.3,3305.8,1.51246]
[1732471187481,3.0245,3306.4,3305.8,1.51246]
[1732471187815,3.02452,3306.3,3305.8,1.51246]
[1732471188996,3.0245,3306.4,3305.8,1.51246]
[1732471189486,6.04902,3306.4,3305.8,1.51246]
[1732471190286,3.02455,3306.3,3305.8,1.51246]
[1732471192308,3.02455,3306.3,3305.8,2.114962]
[1732471193240,3.02455,3306.3,3305.8,0.602502]
[1732471193401,3.02474,3306.1,3305.6,1.51256]
[1732471193602,3.02455,3306.3,3305.6,1.51256]
[1732471193802,3.02462,3306.2,3305.7,4.51253]
[1732471195851,0.8278,3306.3,3305.3,0.38400048]
[1732471196011,0.8278,3306.3,3305.4,0.33840005]
[1732471196334,3.02495,3305.9,3305.4,1.51265]
[1732471198114,6.04991,3305.9,3305.4,1.51265]
[1732471198445,3.02495,3305.9,3305.2,1.51274]
[1732471198630,3.02495,3305.9,3305.3,1.51268]
[1732471199140,3.02495,3305.9,3305.2,1.663994]
[1732471199347,3.02514,3305.7,3305.1,4.5128]
[1732471199540,3.02518,3305.6,3305.1,1.5128]
[1732471199850,3.02536,3305.4,3305.1,0.15128]
[1732471200148,3.02536,3305.4,3304.8,1.51294]
[1732471200149,3.02537,3305.4,3304.8,1.51294]
[1732471200365,3.02537,3305.4,3304.8,1.815536]
[1732471200639,3.02537,3305.4,3304.9,1.51289]
[1732471200847,3.02537,3305.4,3304.7,1.51296]
[1732471201021,3.02537,3305.4,3304.3,1.51317]
[1732471201225,3.02548,3305.3,3304.7,1.51295]
[1732471201549,3.02548,3305.3,3304.6,3.0]
[1732471201841,5.35173484,3306.4,3304.4,1.694607]
[1732471201842,3.02584,3304.9,3304.4,1.694607]
[1732471202011,3.02584,3304.9,3304.3,1.51314]
[1732471202349,3.02616,3304.6,3303.9,1.51332]
[1732471202553,3.02629,3304.4,3303.9,0.151332]
[1732471202711,3.02621,3304.5,3303.9,0.151332]
[1732471202912,3.02608,3304.7,3304.0,1.51328]
[1732471203144,3.02618,3304.5,3303.8,1.51337]
[1732471203443,3.02636,3304.3,3303.8,0.151337]
[1732471203752,3.0266,3304.1,3303.4,1.51357]
[1732471203911,3.02659,3304.1,3303.4,1.51357]
[1732471204265,3.02673,3303.9,3303.2,1.51364]
[1732471204406,3.02649,3304.2,3303.3,0.151365]
[1732471204730,6.05301,3304.2,3303.6,1.51349]
[1732471204926,3.02649,3304.2,3303.6,1.51349]
[1732471205105,3.02654,3304.1,3303.4,1.51354]
[1732471205308,3.02665,3304.0,3303.4,1.664894]
[1732471205814,6.05337,3304.0,3303.4,0.151354]
[1732471206020,3.02665,3304.0,3303.4,0.151354]
[1732471206229,5.35303484,3305.0,3303.1,1.51372]
[1732471206230,3.02688,3303.8,3303.1,1.51372]
[1732471206438,3.02688,3303.8,3303.1,0.38409748]
[1732471206754,3.02729,3303.3,3302.6,1.51394]
[1732471206909,3.02729,3303.3,3302.7,1.51391]
[1732471207109,3.02743,3303.2,3302.4,1.51403]
[1732471207345,3.78789,3303.3,3302.6,1.51395]
[1732471207809,0.7606,3303.7,3303.0,1.51377]
[1732471208010,0.32505468,3304.4,3302.8,2.32725484]
[1732471208230,0.1,3305.2,3302.8,2.32725484]
[1732471208231,3.02619,3304.5,3303.8,1.51337]
[1732471208446,3.7866,3304.7,3304.1,1.51326]
[1732471208657,3.02571,3305.0,3304.1,1.51325]
[1732471208841,3.02628,3304.4,3303.8,1.51339]
[1732471209149,3.02646,3304.2,3303.6,1.51347]
[1732471209360,6.05314,3304.1,3303.5,3.0]
[1732471209663,3.02678,3303.9,3303.4,1.51358]
[1732471209840,3.02684,3303.8,3303.2,1.51368]
[1732471210040,3.02678,3303.9,3303.2,0.68409348]
[1732471210350,3.02678,3303.9,3303.2,2.19774348]
[1732471210558,3.02678,3303.9,3303.1,3.0]
[1732471210559,3.02695,3303.7,3303.1,3.0]
[1732471210852,3.02679,3303.9,3303.1,4.51372]
[1732471211059,3.02688,3303.8,3303.1,5.23622893]
[1732471211350,3.02679,3303.9,3303.3,1.5136]
[1732471211542,3.02679,3303.9,3303.4,1.51358]
[1732471211741,3.02679,3303.9,3303.3,1.5136]
[1732471212129,3.02679,3303.9,3303.4,1.51359]
[1732471212544,3.02656,3304.1,3303.6,1.51349]
[1732471213145,6.05281,3304.3,3303.6,1.51349]
[1732471213346,3.02648,3304.2,3303.6,1.51349]
[1732471213543,3.02671,3304.0,3303.3,3.0]
[1732471213742,3.02647,3304.2,3303.6,1.5135]
[1732471214143,3.0266,3304.1,3303.4,1.51359]
[1732471214970,3.0266,3304.1,3303.5,1.51354]
[1732471215677,3.02631,3304.4,3303.7,1.51345]
[1732471215832,3.43587955,3304.4,3303.7,1.51345]
[1732471216346,1.06938548,3304.5,3303.9,1.51335]
[1732471216670,3.78656,3304.8,3304.2,1.5132]
[1732471216892,3.02599,3304.7,3304.0,1.5133]
[1732471217170,3.02599,3304.7,3304.0,1.51328]
[1732471217471,3.02599,3304.7,3304.1,1.51324]
[1732471217672,3.02599,3304.7,3303.9,1.51335]
[1732471217973,3.02622,3304.5,3303.9,1.51335]
[1732471218637,3.02622,3304.5,3303.9,1.51332]
[1732471218836,3.02622,3304.5,3304.0,1.5133]
[1732471219447,3.02599,3304.7,3303.9,1.51332]
[1732471219773,3.02637,3304.3,3303.7,1.51342]
[1732471220278,3.02646,3304.2,3303.7,1.51342]
[1732471220780,3.02627,3304.4,3303.8,1.51339]
[1732471220960,3.02627,3304.4,3303.8,4.51339]
[1732471221135,3.78653,3304.8,3304.2,1.51318]
[1732471221341,3.02599,3304.7,3304.2,1.51318]
[1732471221841,3.0262,3304.5,3304.0,1.51328]
[1732471222172,3.02633,3304.4,3303.8,1.5134]
[1732471222337,3.02641,3304.3,3303.8,1.5134]
[1732471222669,3.02632,3304.4,3303.8,1.5134]
[1732471222876,0.8278,3304.4,3303.5,1.51351]
[1732471223048,3.02652,3304.2,3303.6,4.51346]
[1732471223642,3.02652,3304.2,3303.6,1.51346]
[1732471224637,3.02646,3304.2,3303.6,1.51346]
[1732471225488,3.02678,3303.9,3303.3,1.51362]
[1732471225783,3.02682,3303.8,3303.3,1.51362]
[1732471226664,3.02692,3303.7,3303.1,0.23272548]
[1732471226861,3.79078,3303.9,3303.2,1.51364]
[1732471227206,3.02705,3303.6,3303.0,1.51377]
[1732471227508,3.02732,3303.3,3302.7,1.51386]
[1732471227691,3.02732,3303.3,3302.7,3.479126]
[1732471227891,0.764,3303.4,3302.5,1.51398]
[1732471228106,3.02748,3303.1,3302.5,1.51398]
[1732471228313,3.02778,3302.8,3302.1,1.51414]
[1732471228490,3.02779,3302.8,3302.2,1.51414]
[1732471229098,3.02779,3302.8,3302.1,1.51414]
[1732471229404,0.379127,3303.2,3302.2,1.5141]
[1732471229405,3.0275,3303.1,3302.2,1.5141]
[1732471229693,3.0277,3302.9,3302.3,1.51406]
[1732471229872,3.0277,3302.9,3302.2,3.0]
[1732471230072,3.0277,3302.9,3302.2,1.51411]
[1732471230310,3.0277,3302.9,3302.3,1.51406]
[1732471231667,3.02746,3303.1,3302.4,1.51405]
[1732471231864,3.02756,3303.0,3302.4,1.51401]
[1732471232179,3.406501,3303.2,3302.4,1.51401]
[1732471232380,3.02737,3303.2,3302.4,1.51401]
[1732471232761,3.02737,3303.2,3302.6,1.51395]
[1732471232962,3.02751,3303.1,3302.6,1.51395]
[1732471233189,3.02756,3303.0,3302.4,1.51401]
[1732471234162,3.02756,3303.0,3302.3,3.0]
[1732471234163,3.02773,3302.8,3302.3,3.0]
[1732471234367,3.79173,3302.8,3302.2,1.51412]
[1732471234669,3.02798,3302.6,3302.0,1.51421]
[1732471235001,3.02798,3302.6,3302.1,1.51418]
[1732471235206,3.79173,3302.8,3302.1,1.51418]
[1732471235370,3.79173,3302.8,3302.2,1.51413]
[1732471235710,3.79173,3302.8,3302.2,4.51413]
[1732471235903,3.79173,3302.8,3302.2,1.5141]
[1732471236103,3.02784,3302.7,3302.2,1.5141]
[1732471236711,3.79177,3302.8,3302.3,1.51409]
[1732471237210,0.764,3302.8,3302.1,3.0]
[1732471237413,3.02785,3302.7,3302.0,1.51421]
[1732471237720,3.02785,3302.7,3302.2,1.51414]
[1732471239486,0.764,3302.8,3302.2,1.51414]
[1732471239686,3.02744,3303.2,3302.0,0.6540305]
[1732471239904,3.79144,3303.2,3302.7,1.51391]
[1732471240214,3.79145,3303.2,3302.6,1.51395]
[1732471240876,3.79145,3303.2,3302.7,1.51391]
[1732471242719,0.764,3303.2,3302.3,0.45444599]
[1732471243004,3.02699,3303.7,3303.1,1.51369]
[1732471243225,3.02707,3303.6,3302.4,4.51403]
[1732471243403,3.708852,3303.6,3303.1,1.51372]
[1732471244191,6.735922,3303.6,3303.1,1.51372]
[1732471244420,0.6735922,3303.5,3302.8,1.51384]
[1732471244732,3.02724,3303.4,3302.9,1.51381]
[1732471245090,3.02724,3303.4,3302.6,1.51393]
[1732471245290,3.02724,3303.4,3302.8,1.51385]
[1732471245710,0.7619,3303.3,3302.5,3.0]
[1732471245918,3.78921,3303.3,3302.6,1.51395]
[1732471246124,3.02736,3303.2,3302.7,1.5139]
[1732471246633,3.78921,3303.3,3302.9,1.51379]
[1732471246634,0.7619,3303.3,3302.9,1.51379]
[1732471246933,0.7619,3303.3,3303.0,1.51376]
[1732471247137,0.7619,3303.6,3303.2,1.51367]
[1732471247293,3.02712,3303.5,3303.0,1.51375]
[1732471247701,3.7889,3303.6,3303.0,3.02749]
[1732471247894,0.378881,3303.5,3303.0,3.02749]
[1732471248126,0.378881,3303.5,3303.0,1.51374]
[1732471248441,0.7619,3303.6,3303.0,1.51374]
[1732471248642,3.02691,3303.7,3303.0,1.51374]
[1732471249128,3.02691,3303.7,3303.2,1.51365]
[1732471249293,3.02707,3303.6,3303.0,1.51374]
[1732471249495,3.329761,3303.6,3303.0,1.51374]
[1732471250819,3.329761,3303.6,3303.0,1.51377]
[1732471251018,0.302691,3303.6,3303.2,1.51367]
[1732471251845,3.02646,3304.2,3303.3,0.03027428]
[1732471251846,0.7619,3304.2,3303.3,0.03027428]
[1732471252037,0.7619,3304.2,3304.0,1.5133]
[1732471252345,0.7619,3304.6,3304.1,1.51323]
[1732471252497,0.7619,3304.6,3304.2,1.51321]
[1732471252841,0.7619,3304.6,3303.7,0.0302656]
[1732471252842,0.7619,3304.9,3304.3,1.51315]
[1732471253152,3.0259,3304.9,3304.2,3.0]
[1732471253311,3.0259,3304.9,3304.1,1.51326]
[1732471253516,3.02569,3305.1,3304.5,1.51308]
[1732471253913,3.02571,3305.1,3304.3,1.51316]
[1732471254234,3.02586,3304.9,3304.4,1.51312]
[1732471254409,3.0259,3304.8,3304.3,1.51316]
[1732471254611,3.02602,3304.7,3304.1,4.51326]
[1732471254811,0.7619,3304.6,3304.1,4.51326]
[1732471255022,0.7619,3304.6,3304.1,3.0]
[1732471255226,3.78805,3304.6,3304.0,1.51329]
[1732471255660,3.02615,3304.6,3304.1,1.51326]
[1732471255952,3.02559,3305.2,3304.5,1.51308]
[1732471255953,0.8266,3304.9,3304.5,1.51308]
[1732471256451,0.8266,3304.9,3304.4,1.51311]
[1732471256953,0.8266,3304.9,3304.4,3.02621]
[1732471257110,0.8266,3304.9,3304.5,1.51307]
[1732471257313,0.8266,3304.9,3304.4,1.5131]
[1732471258026,3.85241,3304.9,3304.2,1.51318]
[1732471259229,4.540224,3304.9,3304.2,1.51318]
[1732471259432,4.540224,3304.9,3304.3,1.51316]
[1732471259645,1.514414,3304.9,3304.4,1.51309]
[1732471259812,3.85241,3304.9,3304.3,1.51313]
[1732471260247,3.0259,3304.8,3304.3,1.51313]
[1732471260640,3.0259,3304.8,3304.1,1.51325]
[1732471260819,3.0259,3304.8,3304.2,1.51322]
[1732471261243,3.02603,3304.7,3304.2,1.51322]
[1732471261413,3.85246,3304.9,3304.2,1.51322]
[1732471261620,3.85246,3304.9,3304.3,1.51317]
[1732471261832,0.8266,3304.9,3304.4,1.51309]
[1732471262037,0.8266,3304.9,3304.1,0.3]
[1732471262269,0.8266,3305.3,3304.8,1.51295]
[1732471262421,3.02556,3305.2,3304.6,3.02604]
[1732471262615,3.7435653,3305.2,3304.7,1.51298]
[1732471262835,0.7180053,3305.2,3304.7,1.51298]
[1732471263357,0.7180053,3305.2,3304.5,1.51305]
[1732471263358,3.7435553,3305.2,3304.5,1.51305]
[1732471263569,0.8266,3304.9,3304.2,1.5132]
[1732471263747,0.8266,3304.9,3304.4,1.5131]
[1732471264373,3.85243,3304.9,3304.2,1.5132]
[1732471264525,0.8266,3304.9,3304.4,1.51309]
[1732471264722,0.8266,3304.9,3303.9,0.55]
[1732471264971,0.8266,3305.2,3304.6,1.513]
[1732471265276,0.38521,3305.1,3304.7,1.51297]
[1732471266057,3.41086,3305.1,3304.6,1.513]
[1732471266304,3.41086,3305.1,3304.4,1.5131]
[1732471266305,3.02565,3305.1,3304.4,1.5131]
[1732471266595,0.7919,3304.7,3304.1,3.02646]
[1732471266966,3.81792,3304.7,3304.2,1.51321]
[1732471267173,3.81792,3304.7,3304.2,4.51321]
[1732471267397,3.02581,3304.9,3304.3,1.51317]
[1732471267701,3.02581,3304.9,3304.4,1.51312]
[1732471267855,3.02581,3304.9,3304.0,3.0]
[1732471267856,3.02591,3304.8,3304.2,1.51319]
[1732471268056,3.02591,3304.8,3304.2,4.51319]
[1732471268375,3.026,3304.7,3304.2,1.51319]
[1732471268985,3.02633,3304.4,3303.7,3.02684]
[1732471269298,3.02633,3304.4,3303.8,1.51339]
[1732471269760,3.02664,3304.0,3303.5,1.51353]
[1732471269960,3.0265,3304.2,3303.4,1.51355]
[1732471270181,3.02678,3303.9,3303.3,1.51361]
[1732471270373,3.02669,3304.0,3303.3,1.51361]
[1732471270703,0.7919,3303.7,3303.1,1.51369]
[1732471270904,0.7919,3303.7,3302.8,1.51386]
[1732471271209,0.7919,3303.7,3303.3,1.5136]
[1732471271761,0.7919,3304.1,3303.6,1.51347]
[1732471271958,0.7919,3304.1,3303.4,3.02712]
[1732471272194,3.02663,3304.0,3303.4,1.51355]
[1732471272394,3.02674,3303.9,3303.4,1.51355]
[1732471272892,0.7919,3304.1,3303.4,1.51355]
[1732471273097,0.7919,3304.1,3303.5,1.51353]
[1732471273098,3.8185,3304.1,3303.5,1.51353]
[1732471273310,3.02664,3304.0,3303.5,1.51353]
[1732471273505,3.02664,3304.0,3303.3,3.0]
[1732471273686,3.02664,3304.0,3303.5,1.51353]
[1732471274088,3.02664,3304.0,3303.2,1.665016]
[1732471274288,3.02688,3303.8,3303.2,1.51365]
[1732471274914,3.02688,3303.8,3303.3,1.51363]
[1732471276294,0.7919,3304.1,3303.3,1.5136]
[1732471276495,0.7919,3304.1,3303.6,1.51347]
[1732471276709,0.7728,3304.4,3304.0,1.51331]
[1732471277017,3.02551,3305.3,3304.3,1.51317]
[1732471277018,3.02586,3304.9,3304.3,1.51317]
[1732471277704,3.02567,3305.1,3304.4,1.5131]
[1732471277913,3.02562,3305.1,3303.9,1.51334]
[1732471278129,3.0259,3304.8,3304.0,4.51328]
[1732471278275,3.02605,3304.7,3304.1,1.51327]
[1732471278968,3.02609,3304.6,3303.9,1.51332]
[1732471279175,0.302609,3304.5,3304.0,1.51329]
[1732471279373,3.02609,3304.6,3304.0,4.51329]
[1732471279597,3.02638,3304.3,3303.7,1.51344]
[1732471280477,3.0265,3304.2,3303.7,1.51344]
[1732471280787,3.708919,3304.3,3303.7,1.51344]
[1732471280788,3.02638,3304.3,3303.7,1.51344]
[1732471281712,0.7728,3304.4,3303.7,1.51341]
[1732471281888,1.1527,3304.4,3303.3,4.51361]
[1732471282208,3.79909,3304.4,3303.8,1.51338]
[1732471282513,6.82544,3304.4,3303.8,1.51338]
[1732471282693,3.708904,3304.3,3303.8,1.51338]
[1732471282900,3.02651,3304.2,3303.6,1.51347]
[1732471283616,3.02654,3304.1,3303.6,1.51347]
[1732471285411,6.05316,3304.1,3303.4,4.51355]
[1732471285616,3.02669,3304.0,3303.4,4.51355]
[1732471286196,3.3974484,3304.1,3303.5,1.51353]
[1732471286396,3.02654,3304.1,3303.5,1.51353]
[1732471286598,3.708934,3304.3,3303.5,1.51351]
[1732471286794,3.708934,3304.3,3303.7,1.51342]
[1732471286982,3.02639,3304.3,3303.8,1.5134]
[1732471287610,3.02639,3304.3,3303.8,1.51339]
[1732471287978,3.02645,3304.2,3303.6,1.51348]
[1732471288181,3.83311,3304.5,3303.7,1.51342]
[1732471288485,3.02636,3304.3,3303.8,1.5134]
[1732471288685,3.02636,3304.3,3303.7,1.51342]
[1732471288898,3.02645,3304.2,3303.7,1.51342]
[1732471289201,3.02645,3304.2,3303.5,3.02703]
[1732471289399,3.02672,3304.0,3303.3,1.5136]
[1732471289597,3.83364,3303.9,3303.4,4.51358]
[1732471290532,0.8069,3303.9,3303.5,1.51353]
[1732471290835,0.8069,3304.1,3303.5,1.51353]
[1732471291039,0.8069,3304.1,3303.7,1.51345]
[1732471291324,3.8332,3304.4,3303.8,1.51339]
[1732471291889,3.02642,3304.3,3303.6,1.51348]
[1732471292230,3.02647,3304.2,3303.6,1.51346]
[1732471292400,0.685962,3304.3,3303.7,1.51341]
[1732471292594,3.02641,3304.3,3303.7,1.51341]
[1732471293016,3.8332,3304.4,3303.6,1.51346]
[1732471293201,3.02654,3304.1,3303.6,1.51346]
[1732471293526,0.7932,3303.9,3303.4,1.51357]
[1732471294899,0.7932,3303.9,3303.4,1.51355]
[1732471295435,0.7932,3303.9,3303.4,3.0271]
[1732471295728,0.7932,3303.9,3303.2,1.51364]
[1732471296042,0.7932,3303.9,3302.9,1.51381]
[1732471296043,3.02694,3303.7,3302.9,1.51381]
[1732471296342,0.382014,3303.6,3303.0,1.51376]
[1732471296510,0.382014,3303.6,3303.1,1.51372]
[1732471296826,3.02694,3303.7,3303.1,1.51372]
[1732471297027,3.02705,3303.6,3303.1,1.51372]
[1732471299130,3.02705,3303.6,3302.9,1.51381]
[1732471299528,0.7804,3303.2,3302.7,1.5139]
[1732471299678,3.02749,3303.1,3302.6,3.02]
[1732471299977,3.02749,3303.1,3302.6,0.02]
[1732471300278,3.02749,3303.1,3302.6,1.53395]
[1732471300786,0.7804,3303.2,3302.6,0.02]
[1732471300954,3.02709,3303.5,3303.0,1.51374]
[1732471301277,3.02709,3303.5,3302.9,1.51378]
[1732471301660,3.02709,3303.5,3303.0,1.51377]
[1732471301877,0.7804,3303.9,3303.0,0.33302928]
[1732471302040,3.80688,3304.2,3303.4,1.51356]
[1732471303046,3.02664,3304.0,3303.5,1.51353]
[1732471303456,3.02664,3304.0,3303.4,1.51356]
[1732471303660,3.02673,3303.9,3303.4,1.51356]
[1732471305679,3.02663,3304.0,3303.1,3.0]
[1732471305889,3.02663,3304.0,3303.4,1.51355]
[1732471307153,3.02674,3303.9,3303.4,1.51355]
[1732471308047,3.02674,3303.9,3303.3,1.51362]
[1732471308048,3.02676,3303.9,3303.3,1.51362]
[1732471308255,3.02676,3303.9,3303.1,1.51372]
[1732471308256,3.02692,3303.7,3303.1,1.51372]
[1732471308830,0.8316,3303.6,3303.2,1.51367]
[1732471309295,3.02682,3303.8,3303.3,1.51362]
[1732471309975,3.02655,3304.1,3303.5,1.5135]
[1732471310276,3.85786,3304.5,3303.9,1.51333]
[1732471310505,3.85786,3304.5,3304.1,1.51322]
[1732471310506,0.8316,3304.5,3304.1,1.51322]
[1732471310673,3.02599,3304.7,3304.1,1.51322]
[1732471310885,3.63117,3304.7,3304.1,1.51322]
[1732471311055,0.8316,3304.8,3304.3,1.51314]
[1732471311553,3.02606,3304.7,3304.1,3.02647]
[1732471311753,3.02606,3304.7,3304.2,1.51321]
[1732471314556,0.8316,3304.8,3304.2,1.51321]
[1732471314899,3.85751,3304.8,3304.2,1.51321]
[1732471316073,3.02599,3304.7,3304.2,1.51321]
[1732471316990,3.02599,3304.7,3303.7,4.51341]
[1732471316991,3.02633,3304.4,3303.7,4.51341]
[1732471317174,0.8162,3305.2,3304.0,1.5133]
[1732471317376,3.02596,3304.8,3304.2,1.51319]
[1732471317574,0.302596,3304.7,3304.2,1.51319]
[1732471317790,3.02574,3305.0,3304.3,1.51316]
[1732471317956,3.02574,3305.0,3304.4,1.51311]
[1732471318157,3.84176,3305.2,3304.4,1.51311]
[1732471318366,3.409813,3305.1,3304.6,1.51303]
[1732471318762,3.409813,3305.1,3304.4,1.51311]
[1732471318963,3.409813,3305.1,3303.9,3.0]
[1732471319190,3.02564,3305.1,3304.5,1.51305]
[1732471319389,3.02581,3304.9,3304.3,1.51313]
[1732471319565,3.02581,3304.9,3304.1,1.51326]
[1732471319566,3.630955,3304.9,3304.1,1.51326]
[1732471319782,3.02599,3304.7,3304.1,1.51326]
[1732471320299,3.83009,3304.6,3304.0,1.51328]
[1732471320615,3.83009,3304.6,3304.1,1.51327]
[1732471320765,0.804,3304.6,3304.1,1.51327]
[1732471321169,1.106581,3304.8,3303.7,0.55]
[1732471321485,0.804,3304.8,3304.3,1.51316]
[1732471322599,0.804,3304.8,3304.3,1.51314]
[1732471322796,0.804,3304.8,3304.4,1.51313]
[1732471323000,0.804,3304.8,3304.3,1.51314]
[1732471323310,3.82978,3305.0,3304.4,1.51312]
[1732471323477,4.132351,3305.0,3304.4,1.51312]
[1732471323673,1.106571,3305.0,3304.4,1.51312]
[1732471324523,3.02585,3304.9,3304.1,1.51326]
[1732471324679,3.4390781,3304.9,3304.1,1.51326]
[1732471324866,5.04497259,3304.9,3304.1,1.51326]
[1732471325070,3.4390781,3304.9,3304.1,1.51326]
[1732471325303,0.8083,3304.5,3303.6,0.55]
[1732471325507,3.83456,3304.5,3303.9,1.51334]
[1732471325714,6.05206,3304.7,3303.6,0.55]
[1732471325925,0.8083,3304.8,3303.7,0.20937744]
[1732471326133,0.8083,3304.8,3304.4,1.51312]
[1732471326292,3.0256,3305.2,3304.6,1.51302]
[1732471326494,0.8083,3305.3,3304.6,1.51302]
[1732471326702,0.8083,3305.3,3304.7,1.51297]
[1732471326924,0.8083,3305.3,3304.9,1.51289]
[1732471327088,3.02536,3305.4,3304.7,1.51297]
[1732471327546,3.02536,3305.4,3304.9,1.5129]
[1732471327690,3.02536,3305.4,3304.7,1.51297]
[1732471327893,3.02536,3305.4,3304.6,3.0]
[1732471328089,3.02564,3305.1,3304.3,4.51315]
[1732471328323,3.02564,3305.1,3304.4,1.51309]
[1732471328637,3.83403,3305.0,3304.5,3.0]
[1732471328798,3.02591,3304.8,3304.2,1.51321]
[1732471329137,3.8341,3305.0,3304.3,1.51317]
[1732471329295,0.8083,3305.0,3304.2,1.51318]
[1732471329637,0.8083,3305.0,3304.5,1.51304]
[1732471330011,0.8083,3305.0,3304.2,1.664498]
[1732471330319,3.83407,3305.0,3304.2,1.664498]
[1732471330508,3.02589,3304.9,3304.2,1.664498]
[1732471330709,3.83407,3305.0,3304.2,1.664498]
[1732471330710,3.02593,3304.8,3304.2,1.664498]
[1732471331065,6.85986,3305.0,3304.3,3.0]
[1732471331195,3.02581,3304.9,3304.2,2.572408]
[1732471331505,0.8083,3305.0,3304.4,1.21048]
[1732471331708,3.02564,3305.1,3304.5,1.21047]
[1732471332323,3.02564,3305.1,3304.3,0.03026044]
[1732471332634,3.8343,3304.7,3303.8,1.2107]
[1732471332845,3.02617,3304.5,3303.8,1.2107]
[1732471333146,0.8083,3304.7,3303.6,1.21077]
[1732471333351,3.02682,3303.8,3302.9,1.21103]
[1732471333496,3.410442,3303.7,3303.1,1.21096]
[1732471333697,3.02682,3303.8,3303.0,1.21101]
[1732471334004,3.02685,3303.8,3303.1,1.21096]
[1732471334429,0.8083,3303.9,3303.1,1.21096]
[1732471334736,3.83502,3303.9,3303.1,1.21096]
[1732471335030,3.83502,3303.9,3303.2,1.21091]
[1732471335240,3.0,3304.5,3303.2,0.03027015]
[1732471335424,3.02645,3304.2,3303.4,1.21084]
[1732471335624,3.02669,3304.0,3303.1,1.24125012]
[1732471335797,3.02669,3304.0,3303.1,1.21095]
[1732471336001,3.02673,3303.9,3303.2,1.21093]
[1732471337632,0.8083,3304.4,3302.9,1.76102]
[1732471337838,3.0269,3303.8,3303.0,0.51178874]
[1732471338046,3.83461,3304.4,3303.4,1.21086]
[1732471338047,6.05299,3304.2,3303.4,1.21086]
[1732471338351,3.02655,3304.1,3303.4,1.21086]
[1732471338503,3.631852,3304.1,3303.4,1.21086]
[1732471338703,3.631852,3304.1,3303.3,2.42174]
[1732471339004,3.631852,3304.1,3303.4,1.21085]
[1732471339239,3.02663,3304.0,3303.4,1.21085]
[1732471340041,3.02663,3304.0,3303.2,1.21093]
[1732471340423,3.02683,3303.8,3303.1,3.0]
[1732471340617,3.02683,3303.8,3303.0,1.72278874]
[1732471340845,0.3631932,3304.0,3303.3,1.21089]
[1732471341046,3.02669,3304.0,3303.3,1.21089]
[1732471341268,3.02687,3303.8,3303.1,1.21097]
[1732471341776,3.02687,3303.8,3303.2,1.21094]
[1732471342127,3.71281,3304.0,3303.2,1.21094]
[1732471342327,0.371281,3303.9,3303.3,1.2109]
[1732471342576,3.02666,3304.0,3303.4,1.21087]
[1732471342747,3.02666,3304.0,3303.3,1.2109]
[1732471342945,3.02666,3304.0,3303.1,1.21097]
[1732471343147,3.02679,3303.9,3303.2,1.21094]
[1732471343361,0.8083,3304.2,3303.0,3.0]
[1732471343565,3.02692,3303.7,3303.0,4.21099]
[1732471343874,3.02711,3303.5,3302.8,0.35686736]
[1732471344192,3.83531,3303.6,3302.9,1.21103]
[1732471344836,3.83531,3303.6,3302.9,4.21102]
[1732471345572,0.8083,3303.6,3303.0,1.21101]
[1732471345749,3.8353,3303.6,3303.0,1.21101]
[1732471347043,0.8083,3303.6,3302.9,0.03027239]
[1732471347371,3.02692,3303.7,3303.0,1.21098]
[1732471347543,6.05389,3303.7,3303.0,1.21098]
[1732471347745,3.02692,3303.7,3303.0,1.21098]
[1732471348278,3.02715,3303.5,3302.8,1.21106]
[1732471348486,3.02715,3303.5,3302.8,1.92189148]
[1732471349180,3.02715,3303.5,3302.8,3.13296148]
[1732471349376,3.02715,3303.5,3302.8,1.92189148]